[Event "FIDE Women World Blitz 2021"]
[Site "Warsaw"]
[Date "2021.12.29"]
[Round "3.28"]
[White "Serikbay, Assel"]
[Black "Muetsch, Annmarie"]
[Result "1-0"]
[ECO "A41"]
[WhiteElo "2237"]
[BlackElo "2279"]
[Annotator "NA"]
[PlyCount "103"]
[EventDate "2021.12.29"]
[EventType "swiss"]
[EventCountry "POL"]
[Tiebreak "Cut1 Buchholz"]
[SourceTitle "playchess.com"]
[Source "ChessBase"]
[SourceQuality "1"]
[TimeControl "180+2"]

1. d4 {[%emt 0:00:01]} d6 {[%emt 0:00:00]} 2. c4 {[%emt 0:00:02]} e5 {[%emt 0:
00:02]} 3. dxe5 {[%emt 0:00:04]} dxe5 {[%emt 0:00:01]} 4. Qxd8+ {[%emt 0:00:02]
} Kxd8 {[%emt 0:00:01]} 5. Nc3 {[%emt 0:00:01]} Be6 {[%emt 0:00:01]} 6. b3 {
[%emt 0:00:06]} c6 {[%emt 0:00:21]} 7. Bb2 {[%emt 0:00:03]} Nd7 {[%emt 0:00:03]
} 8. O-O-O {[%emt 0:00:11]} Kc7 {[%emt 0:00:01]} 9. Nf3 {[%emt 0:00:12]} Ngf6 {
[%emt 0:00:06]} 10. Ng5 {[%emt 0:00:17]} Re8 {[%emt 0:00:08]} 11. e3 {[%emt 0:
00:31]} Ng4 {[%emt 0:00:11]} 12. Rd2 {[%emt 0:00:01]} Bc5 {[%emt 0:00:07]} 13.
Nce4 {[%emt 0:00:12]} Bb6 {[%emt 0:00:05]} 14. h3 {[%emt 0:00:15]} Nh6 {
[%emt 0:00:13]} 15. c5 {[%emt 0:00:05]} Ba5 {[%emt 0:00:07]} 16. Rd1 {[%emt 0:
00:05]} f6 {[%emt 0:00:14]} 17. Nxe6+ {[%emt 0:00:03]} Rxe6 {[%emt 0:00:01]}
18. Bc4 {[%emt 0:00:00]} Re7 {[%emt 0:00:05]} 19. a3 {[%emt 0:00:03]} f5 {
[%emt 0:00:13]} 20. Nd6 {[%emt 0:00:20]} Nxc5 {[%emt 0:00:09]} 21. b4 {[%emt 0:
00:02]} Bb6 {[%emt 0:00:01]} 22. g4 {[%emt 0:00:23]} Ne4 {[%emt 0:00:10]} 23.
Nxe4 {[%emt 0:00:14]} fxe4 {[%emt 0:00:01]} 24. a4 {[%emt 0:00:10]} a5 {
[%emt 0:00:02]} 25. bxa5 {[%emt 0:00:02]} Bxa5 {[%emt 0:00:03]} 26. Ba3 {
[%emt 0:00:01]} Ree8 {[%emt 0:00:11]} 27. Rd6 {[%emt 0:00:09]} Kb8 {[%emt 0:00:
11]} 28. Rd7 {[%emt 0:00:03]} Rd8 {[%emt 0:00:16]} 29. Rxg7 {[%emt 0:00:03]}
Rd2 {[%emt 0:00:01]} 30. Rd1 {[%emt 0:00:05]} Rhd8 {[%emt 0:00:15]} 31. Rxd2 {
[%emt 0:00:01]} Bxd2+ {[%emt 0:00:05]} 32. Kc2 {[%emt 0:00:01]} Ba5 {[%emt 0:
00:20]} 33. Rxh7 {[%emt 0:00:01]} Ng8 {[%emt 0:00:10]} 34. Rh8 {[%emt 0:00:03]}
Nf6 {[%emt 0:00:02]} 35. Bd6+ {[%emt 0:00:05]} Ka7 {[%emt 0:00:05]} 36. Rxd8 {
[%emt 0:00:02]} Bxd8 {[%emt 0:00:02]} 37. Bxe5 {[%emt 0:00:01]} Nd7 {[%emt 0:
00:01]} 38. Bd4+ {[%emt 0:00:01]} c5 {[%emt 0:00:02]} 39. Bc3 {[%emt 0:00:01]}
Bh4 {[%emt 0:00:04]} 40. Be6 {[%emt 0:00:09]} Nb6 {[%emt 0:00:03]} 41. a5 {
[%emt 0:00:01]} Na8 {[%emt 0:00:03]} 42. Bd5 {[%emt 0:00:04]} Bxf2 {[%emt 0:00:
03]} 43. Bxe4 {[%emt 0:00:01]} Bxe3 {[%emt 0:00:01]} 44. Kd3 {[%emt 0:00:01]}
Bg5 {[%emt 0:00:02]} 45. Bd2 {[%emt 0:00:06]} Bd8 {[%emt 0:00:02]} 46. g5 {
[%emt 0:00:01]} Nc7 {[%emt 0:00:02]} 47. h4 {[%emt 0:00:04]} Ne6 {[%emt 0:00:
00]} 48. Bd5 {[%emt 0:00:01]} Ng7 {[%emt 0:00:02]} 49. Ke4 {[%emt 0:00:02]} Ka6
{[%emt 0:00:05]} 50. Bf7 {[%emt 0:00:03]} Bxa5 {[%emt 0:00:03]} 51. Bxa5 {
[%emt 0:00:05]} Kxa5 {[%emt 0:00:01]} 52. h5 {[%emt 0:00:01]} 1-0

[Event "FIDE Women World Blitz 2021"]
[Site "Warsaw"]
[Date "2021.12.29"]
[Round "3.29"]
[White "Pourkashiyan, Atousa"]
[Black "Kucharska, Honorata"]
[Result "1-0"]
[ECO "C08"]
[WhiteElo "2322"]
[BlackElo "2168"]
[Annotator "NA"]
[PlyCount "153"]
[EventDate "2021.12.29"]
[EventType "swiss"]
[EventCountry "POL"]
[Tiebreak "Cut1 Buchholz"]
[SourceTitle "playchess.com"]
[Source "ChessBase"]
[SourceQuality "1"]
[TimeControl "180+2"]

1. e4 {[%emt 0:00:03]} e6 {[%emt 0:00:00]} 2. d4 {[%emt 0:00:01]} d5 {[%emt 0:
00:01]} 3. Nd2 {[%emt 0:00:01]} c5 {[%emt 0:00:01]} 4. exd5 {[%emt 0:00:02]}
exd5 {[%emt 0:00:01]} 5. Ngf3 {[%emt 0:00:02]} a6 {[%emt 0:00:01]} 6. dxc5 {
[%emt 0:00:18]} Bxc5 {[%emt 0:00:01]} 7. Bd3 {[%emt 0:00:02]} Ne7 {[%emt 0:00:
01]} 8. O-O {[%emt 0:00:04]} Nbc6 {[%emt 0:00:01]} 9. Nb3 {[%emt 0:00:02]} Bd6
{[%emt 0:00:03]} 10. c3 {[%emt 0:00:16]} O-O {[%emt 0:00:13]} 11. Qc2 {[%emt 0:
00:09]} Ng6 {[%emt 0:00:06]} 12. Bg5 {[%emt 0:00:22]} Qc7 {[%emt 0:00:04]} 13.
h3 {[%emt 0:00:10]} Be6 {[%emt 0:00:20]} 14. Rfe1 {[%emt 0:00:04]} Rfe8 {
[%emt 0:00:15]} 15. Rad1 {[%emt 0:00:02]} Rac8 {[%emt 0:00:08]} 16. Qd2 {
[%emt 0:00:17]} h6 {[%emt 0:00:25]} 17. Be3 {[%emt 0:00:04]} Nge5 {[%emt 0:00:
08]} 18. Nbd4 {[%emt 0:00:22]} Nxd3 {[%emt 0:00:22]} 19. Qxd3 {[%emt 0:00:01]}
Ne5 {[%emt 0:00:04]} 20. Nxe5 {[%emt 0:00:20]} Bxe5 {[%emt 0:00:02]} 21. Nf3 {
[%emt 0:00:02]} Bf6 {[%emt 0:00:11]} 22. Bd4 {[%emt 0:00:01]} Qf4 {[%emt 0:00:
21]} 23. Bxf6 {[%emt 0:00:08]} Qxf6 {[%emt 0:00:02]} 24. Nd4 {[%emt 0:00:01]}
Qg5 {[%emt 0:00:13]} 25. Re3 {[%emt 0:00:05]} Bd7 {[%emt 0:00:24]} 26. Rg3 {
[%emt 0:00:05]} Qf6 {[%emt 0:00:01]} 27. Rf3 {[%emt 0:00:24]} Qd6 {[%emt 0:00:
05]} 28. Nf5 {[%emt 0:00:08]} Bxf5 {[%emt 0:00:02]} 29. Rxf5 {[%emt 0:00:01]}
Qb6 {[%emt 0:00:04]} 30. Qd2 {[%emt 0:00:18]} Rc7 {[%emt 0:00:03]} 31. Rxd5 {
[%emt 0:00:02]} Rce7 {[%emt 0:00:02]} 32. Rd8 {[%emt 0:00:03]} Rxd8 {[%emt 0:
00:09]} 33. Qxd8+ {[%emt 0:00:02]} Qxd8 {[%emt 0:00:01]} 34. Rxd8+ {[%emt 0:00:
01]} Kh7 {[%emt 0:00:01]} 35. Kf1 {[%emt 0:00:01]} Kg6 {[%emt 0:00:01]} 36.
Rd6+ {[%emt 0:00:03]} f6 {[%emt 0:00:01]} 37. c4 {[%emt 0:00:02]} Re4 {[%emt 0:
00:04]} 38. b3 {[%emt 0:00:01]} Re7 {[%emt 0:00:01]} 39. f3 {[%emt 0:00:01]}
Kf5 {[%emt 0:00:02]} 40. Rd5+ {[%emt 0:00:02]} Kg6 {[%emt 0:00:02]} 41. Kf2 {
[%emt 0:00:02]} Kf7 {[%emt 0:00:04]} 42. Rd4 {[%emt 0:00:01]} Kg6 {[%emt 0:00:
01]} 43. Re4 {[%emt 0:00:01]} Rd7 {[%emt 0:00:01]} 44. Ke2 {[%emt 0:00:01]} Kf7
{[%emt 0:00:02]} 45. Re3 {[%emt 0:00:01]} Rc7 {[%emt 0:00:03]} 46. Rd3 {
[%emt 0:00:02]} Re7+ {[%emt 0:00:01]} 47. Kd2 {[%emt 0:00:01]} Rc7 {[%emt 0:00:
02]} 48. Rd5 {[%emt 0:00:01]} Re7 {[%emt 0:00:01]} 49. c5 {[%emt 0:00:02]} Rc7
{[%emt 0:00:03]} 50. b4 {[%emt 0:00:01]} Ke6 {[%emt 0:00:00]} 51. Rd6+ {
[%emt 0:00:00]} Ke5 {[%emt 0:00:01]} 52. a3 {[%emt 0:00:02]} h5 {[%emt 0:00:03]
} 53. Ke3 {[%emt 0:00:02]} g5 {[%emt 0:00:02]} 54. g4 {[%emt 0:00:03]} h4 {
[%emt 0:00:03]} 55. Rd8 {[%emt 0:00:04]} Re7 {[%emt 0:00:02]} 56. a4 {[%emt 0:
00:03]} f5 {[%emt 0:00:02]} 57. gxf5 {[%emt 0:00:07]} Kxf5+ {[%emt 0:00:02]}
58. Kf2 {[%emt 0:00:02]} Ke5 {[%emt 0:00:04]} 59. Rd2 {[%emt 0:00:04]} Kf4 {
[%emt 0:00:03]} 60. Rd4+ {[%emt 0:00:01]} Kf5 {[%emt 0:00:01]} 61. b5 {[%emt 0:
00:02]} axb5 {[%emt 0:00:01]} 62. axb5 {[%emt 0:00:00]} Rc7 {[%emt 0:00:02]}
63. Rd5+ {[%emt 0:00:06]} Kf4 {[%emt 0:00:02]} 64. Rd4+ {[%emt 0:00:02]} Kf5 {
[%emt 0:00:01]} 65. Rc4 {[%emt 0:00:01]} Ke5 {[%emt 0:00:03]} 66. c6 {[%emt 0:
00:01]} bxc6 {[%emt 0:00:02]} 67. Rxc6 {[%emt 0:00:04]} Rb7 {[%emt 0:00:01]}
68. b6 {[%emt 0:00:01]} Kf5 {[%emt 0:00:02]} 69. Ke3 {[%emt 0:00:02]} Ke5 {
[%emt 0:00:01]} 70. Kf2 {[%emt 0:00:02]} Kf5 {[%emt 0:00:01]} 71. Rc5+ {
[%emt 0:00:01]} Kf6 {[%emt 0:00:02]} 72. Rb5 {[%emt 0:00:01]} Kg6 {[%emt 0:00:
02]} 73. Ke3 {[%emt 0:00:01]} Kf6 {[%emt 0:00:02]} 74. Ke4 {[%emt 0:00:00]} Kg6
{[%emt 0:00:01]} 75. Kd5 {[%emt 0:00:02]} Rb8 {[%emt 0:00:10]} 76. Kc6 {
[%emt 0:00:03]} Kf6 {[%emt 0:00:01]} 77. b7 {[%emt 0:00:01]} 1-0

[Event "FIDE Women World Blitz 2021"]
[Site "Warsaw"]
[Date "2021.12.29"]
[Round "3.30"]
[White "Bartel, Marta"]
[Black "Padmini, Rout"]
[Result "0-1"]
[ECO "D91"]
[WhiteElo "2192"]
[BlackElo "2353"]
[Annotator "NA"]
[PlyCount "78"]
[EventDate "2021.12.29"]
[EventType "swiss"]
[EventCountry "POL"]
[Tiebreak "Cut1 Buchholz"]
[SourceTitle "playchess.com"]
[Source "ChessBase"]
[SourceQuality "1"]
[TimeControl "180+2"]

1. d4 {[%emt 0:00:01]} Nf6 {[%emt 0:00:01]} 2. Nf3 {[%emt 0:00:01]} g6 {
[%emt 0:00:06]} 3. c4 {[%emt 0:00:02]} Bg7 {[%emt 0:00:01]} 4. Nc3 {[%emt 0:00:
01]} d5 {[%emt 0:00:02]} 5. Bg5 {[%emt 0:00:03]} Ne4 {[%emt 0:00:02]} 6. Bh4 {
[%emt 0:00:02]} Nxc3 {[%emt 0:00:07]} 7. bxc3 {[%emt 0:00:02]} dxc4 {[%emt 0:
00:05]} 8. e3 {[%emt 0:00:10]} b5 {[%emt 0:00:01]} 9. a4 {[%emt 0:00:20]} c6 {
[%emt 0:00:01]} 10. Be2 {[%emt 0:00:12]} Nd7 {[%emt 0:00:08]} 11. O-O {[%emt 0:
00:03]} a6 {[%emt 0:00:02]} 12. Qc2 {[%emt 0:00:04]} O-O {[%emt 0:00:02]} 13.
Rfb1 {[%emt 0:00:02]} Nb6 {[%emt 0:00:06]} 14. Nd2 {[%emt 0:00:22]} Bf5 {
[%emt 0:00:19]} 15. e4 {[%emt 0:00:04]} Bd7 {[%emt 0:00:03]} 16. f4 {[%emt 0:
00:10]} f5 {[%emt 0:00:04]} 17. e5 {[%emt 0:00:16]} Nd5 {[%emt 0:00:04]} 18.
Bg3 {[%emt 0:01:07]} Bh6 {[%emt 0:00:16]} 19. Rf1 {[%emt 0:00:03]} Ne3 {
[%emt 0:00:07]} 20. Qa2 {[%emt 0:00:07]} Nxf1 {[%emt 0:00:03]} 21. Nxf1 {
[%emt 0:00:01]} Be6 {[%emt 0:00:01]} 22. Ne3 {[%emt 0:00:05]} Rb8 {[%emt 0:00:
21]} 23. Qa3 {[%emt 0:00:01]} Qd7 {[%emt 0:00:02]} 24. Rd1 {[%emt 0:00:11]} Bd5
{[%emt 0:00:01]} 25. h4 {[%emt 0:00:07]} e6 {[%emt 0:00:07]} 26. Kf2 {[%emt 0:
00:01]} Rf7 {[%emt 0:00:04]} 27. h5 {[%emt 0:00:01]} Bf8 {[%emt 0:00:04]} 28.
Qa2 {[%emt 0:00:10]} Be7 {[%emt 0:00:18]} 29. hxg6 hxg6 {[%emt 0:00:01]} 30.
Rh1 {[%emt 0:00:04]} Rh7 {[%emt 0:00:01]} 31. Rxh7 Kxh7 {[%emt 0:00:01]} 32.
axb5 {[%emt 0:00:06]} axb5 {[%emt 0:00:02]} 33. Qa6 {[%emt 0:00:01]} Qb7 {
[%emt 0:00:05]} 34. Qa1 {[%emt 0:00:03]} Kg7 {[%emt 0:00:02]} 35. Nc2 {[%emt 0:
00:04]} Ra8 {[%emt 0:00:05]} 36. Qb1 {[%emt 0:00:01]} Qa7 {[%emt 0:00:05]} 37.
Nb4 {[%emt 0:00:01]} Qa1 {[%emt 0:00:07]} 38. Qc2 {[%emt 0:00:05]} Bxb4 {
[%emt 0:00:05]} 39. cxb4 {[%emt 0:00:01]} Ra2 {[%emt 0:00:03]} 0-1

[Event "FIDE Women World Blitz 2021"]
[Site "Warsaw"]
[Date "2021.12.29"]
[Round "3.31"]
[White "Hryzlova, Sofiia"]
[Black "Majdan, Joanna"]
[Result "1-0"]
[ECO "E90"]
[WhiteElo "2097"]
[BlackElo "2325"]
[Annotator "NA"]
[PlyCount "113"]
[EventDate "2021.12.29"]
[EventType "swiss"]
[EventCountry "POL"]
[Tiebreak "Cut1 Buchholz"]
[SourceTitle "playchess.com"]
[Source "ChessBase"]
[SourceQuality "1"]
[TimeControl "180+2"]

1. d4 {[%emt 0:00:01]} Nf6 {[%emt 0:00:01]} 2. c4 {[%emt 0:00:01]} d6 {[%emt 0:
00:00]} 3. Nc3 {[%emt 0:00:02]} Nbd7 {[%emt 0:00:01]} 4. e4 {[%emt 0:00:02]} g6
{[%emt 0:00:03]} 5. Be3 {[%emt 0:00:04]} Bg7 {[%emt 0:00:01]} 6. h3 {[%emt 0:
00:04]} c5 {[%emt 0:00:04]} 7. Nf3 {[%emt 0:00:03]} O-O {[%emt 0:00:07]} 8. Be2
{[%emt 0:00:04]} cxd4 {[%emt 0:00:05]} 9. Nxd4 {[%emt 0:00:02]} a6 {[%emt 0:00:
09]} 10. O-O {[%emt 0:00:04]} Qc7 {[%emt 0:00:01]} 11. Qc2 {[%emt 0:00:07]} e6
{[%emt 0:00:08]} 12. Rac1 {[%emt 0:00:09]} b6 {[%emt 0:00:03]} 13. b4 {[%emt 0:
00:33]} Bb7 {[%emt 0:00:02]} 14. Rfd1 {[%emt 0:00:06]} Rac8 {[%emt 0:00:01]}
15. Nb3 {[%emt 0:00:08]} Ne5 {[%emt 0:00:14]} 16. Nd2 {[%emt 0:00:19]} Rfd8 {
[%emt 0:00:33]} 17. Qb1 {[%emt 0:00:23]} Ned7 {[%emt 0:00:10]} 18. f4 {[%emt 0:
00:16]} Qb8 {[%emt 0:00:01]} 19. Bf3 {[%emt 0:00:07]} Qa8 {[%emt 0:00:10]} 20.
Qd3 {[%emt 0:00:14]} Ne8 {[%emt 0:00:03]} 21. Na4 {[%emt 0:00:06]} b5 {[%emt 0:
00:02]} 22. Nb6 {[%emt 0:00:08]} Nxb6 {[%emt 0:00:12]} 23. Bxb6 {[%emt 0:00:01]
} Rd7 {[%emt 0:00:27]} 24. cxb5 {[%emt 0:00:03]} axb5 {[%emt 0:00:05]} 25. Qxb5
{[%emt 0:00:06]} Bc6 {[%emt 0:00:05]} 26. Qa5 {[%emt 0:00:02]} Qb7 {[%emt 0:00:
03]} 27. b5 {[%emt 0:00:10]} Bxb5 {[%emt 0:00:06]} 28. Rxc8 {[%emt 0:00:05]}
Qxc8 {[%emt 0:00:07]} 29. Qxb5 {[%emt 0:00:01]} Rb7 {[%emt 0:00:02]} 30. Qa5 {
[%emt 0:00:03]} Bc3 {[%emt 0:00:07]} 31. Rc1 {[%emt 0:00:20]} Bd4+ {[%emt 0:00:
01]} 32. Bxd4 {[%emt 0:00:02]} Qxc1+ {[%emt 0:00:02]} 33. Kh2 {[%emt 0:00:01]}
Rb8 {[%emt 0:00:08]} 34. Bf2 {[%emt 0:00:07]} Rc8 {[%emt 0:00:05]} 35. Bg3 {
[%emt 0:00:02]} Nf6 {[%emt 0:00:05]} 36. Nb3 {[%emt 0:00:02]} Qc4 {[%emt 0:00:
04]} 37. e5 {[%emt 0:00:01]} dxe5 {[%emt 0:00:04]} 38. Qxe5 {[%emt 0:00:01]}
Nd5 {[%emt 0:00:03]} 39. Bxd5 {[%emt 0:00:03]} exd5 {[%emt 0:00:01]} 40. Bf2 {
[%emt 0:00:02]} Qc7 {[%emt 0:00:09]} 41. Qf6 {[%emt 0:00:03]} Qc6 {[%emt 0:00:
06]} 42. Qd4 {[%emt 0:00:04]} Qd6 {[%emt 0:00:03]} 43. a4 {[%emt 0:00:01]} Re8
{[%emt 0:00:02]} 44. Nc5 {[%emt 0:00:01]} Re2 {[%emt 0:00:04]} 45. a5 {[%emt 0:
00:01]} g5 {[%emt 0:00:05]} 46. Bg3 {[%emt 0:00:02]} Rc2 {[%emt 0:00:03]} 47.
Nd3 {[%emt 0:00:01]} Rc4 {[%emt 0:00:03]} 48. Qa7 {[%emt 0:00:03]} gxf4 {
[%emt 0:00:02]} 49. Nxf4 {[%emt 0:00:03]} Qf6 {[%emt 0:00:10]} 50. Nxd5 {
[%emt 0:00:03]} Qa1 {[%emt 0:00:02]} 51. a6 {[%emt 0:00:03]} h5 {[%emt 0:00:02]
} 52. Ne7+ {[%emt 0:00:01]} Kf8 {[%emt 0:00:02]} 53. Qb8+ {[%emt 0:00:02]} Kxe7
{[%emt 0:00:01]} 54. Qd6+ {[%emt 0:00:01]} Ke8 {[%emt 0:00:01]} 55. Bh4 {
[%emt 0:00:02]} f6 {[%emt 0:00:06]} 56. Bxf6 {[%emt 0:00:01]} Kf7 {[%emt 0:00:
05]} 57. Bxa1 {[%emt 0:00:02]} 1-0

[Event "FIDE Women World Blitz 2021"]
[Site "Warsaw"]
[Date "2021.12.29"]
[Round "3.32"]
[White "Kulon, Klaudia"]
[Black "Goraj, Barbara"]
[Result "0-1"]
[ECO "A36"]
[WhiteElo "2328"]
[BlackElo "1902"]
[Annotator "NA"]
[PlyCount "60"]
[EventDate "2021.12.29"]
[EventType "swiss"]
[EventCountry "POL"]
[Tiebreak "Cut1 Buchholz"]
[SourceTitle "playchess.com"]
[Source "ChessBase"]
[SourceQuality "1"]
[TimeControl "180+2"]

1. c4 {[%emt 0:00:01]} Nf6 {[%emt 0:00:02]} 2. g3 {[%emt 0:00:01]} g6 {[%emt 0:
00:01]} 3. Bg2 {[%emt 0:00:00]} Bg7 {[%emt 0:00:01]} 4. Nc3 {[%emt 0:00:01]} d6
{[%emt 0:00:01]} 5. e3 {[%emt 0:00:01]} O-O {[%emt 0:00:09]} 6. Nge2 {[%emt 0:
00:01]} c5 {[%emt 0:00:11]} 7. O-O {[%emt 0:00:02]} Nc6 {[%emt 0:00:06]} 8. h3
{[%emt 0:00:02]} a6 {[%emt 0:00:05]} 9. d3 {[%emt 0:00:02]} Rb8 {[%emt 0:00:01]
} 10. a4 {[%emt 0:00:01]} Bd7 {[%emt 0:00:13]} 11. Rb1 {[%emt 0:00:05]} Ne8 {
[%emt 0:00:09]} 12. d4 {[%emt 0:00:19]} Nc7 {[%emt 0:00:33]} 13. dxc5 {[%emt 0:
00:35]} dxc5 {[%emt 0:00:02]} 14. Ne4 {[%emt 0:00:01]} b6 {[%emt 0:00:18]} 15.
b3 {[%emt 0:00:03]} Nb4 {[%emt 0:00:13]} 16. Bb2 {[%emt 0:00:13]} Bc6 {[%emt 0:
00:05]} 17. Bxg7 {[%emt 0:00:07]} Kxg7 {[%emt 0:00:08]} 18. Qc1 {[%emt 0:00:08]
} Qc8 {[%emt 0:00:26]} 19. Qc3+ {[%emt 0:00:05]} Kg8 {[%emt 0:00:02]} 20. Rfd1
{[%emt 0:00:05]} Qb7 {[%emt 0:00:04]} 21. f3 {[%emt 0:00:11]} Ne6 {[%emt 0:00:
09]} 22. Nd2 {[%emt 0:00:17]} Rbd8 {[%emt 0:00:03]} 23. Nf4 {[%emt 0:00:15]}
Nxf4 {[%emt 0:00:05]} 24. exf4 {[%emt 0:00:03]} Rd3 {[%emt 0:00:02]} 25. Qe5 {
[%emt 0:00:03]} Rfd8 {[%emt 0:00:07]} 26. Qe2 {[%emt 0:00:01]} Qd7 {[%emt 0:00:
03]} 27. Rb2 {[%emt 0:00:11]} Qd4+ {[%emt 0:00:05]} 28. Kh2 {[%emt 0:00:04]}
Qxb2 {[%emt 0:00:02]} 29. Qxe7 {[%emt 0:00:03]} Rxd2 {[%emt 0:00:02]} 30. Rg1 {
[%emt 0:00:00]} Bxf3 {[%emt 0:00:03]} 0-1

[Event "FIDE Women World Blitz 2021"]
[Site "Warsaw"]
[Date "2021.12.29"]
[Round "3.33"]
[White "Dylag, Emilia"]
[Black "Mamedjarova, Turkan"]
[Result "1/2-1/2"]
[ECO "E17"]
[WhiteElo "1863"]
[BlackElo "2264"]
[Annotator "NA"]
[PlyCount "111"]
[EventDate "2021.12.29"]
[EventType "swiss"]
[EventCountry "POL"]
[Tiebreak "Cut1 Buchholz"]
[SourceTitle "playchess.com"]
[Source "ChessBase"]
[SourceQuality "1"]
[TimeControl "180+2"]

1. d4 {[%emt 0:00:01]} Nf6 {[%emt 0:00:03]} 2. c4 {[%emt 0:00:02]} e6 {[%emt 0:
00:01]} 3. Nf3 {[%emt 0:00:02]} b6 {[%emt 0:00:02]} 4. g3 {[%emt 0:00:02]} Ba6
{[%emt 0:00:01]} 5. Qc2 {[%emt 0:00:09]} Bb7 {[%emt 0:00:11]} 6. Bg2 {[%emt 0:
00:04]} c5 {[%emt 0:00:02]} 7. O-O {[%emt 0:00:21]} cxd4 {[%emt 0:00:13]} 8.
Nxd4 {[%emt 0:00:02]} Bxg2 {[%emt 0:00:03]} 9. Kxg2 {[%emt 0:00:01]} Bc5 {
[%emt 0:00:12]} 10. Nb3 {[%emt 0:00:22]} Be7 {[%emt 0:00:01]} 11. Nc3 {[%emt 0:
00:02]} O-O {[%emt 0:00:14]} 12. Nd4 {[%emt 0:00:15]} Qc7 {[%emt 0:00:05]} 13.
b3 {[%emt 0:00:06]} Nc6 {[%emt 0:00:10]} 14. Nf3 {[%emt 0:00:17]} a6 {[%emt 0:
00:11]} 15. Bb2 {[%emt 0:00:12]} Rac8 {[%emt 0:00:04]} 16. Rad1 {[%emt 0:00:09]
} Rfd8 {[%emt 0:00:09]} 17. e4 {[%emt 0:00:11]} Ng4 {[%emt 0:00:18]} 18. Qe2 {
[%emt 0:00:11]} Nge5 {[%emt 0:00:20]} 19. Nxe5 {[%emt 0:00:03]} Nxe5 {[%emt 0:
00:01]} 20. f4 {[%emt 0:00:04]} Nc6 {[%emt 0:00:03]} 21. Qg4 {[%emt 0:00:20]}
Bf8 {[%emt 0:00:06]} 22. h4 {[%emt 0:00:11]} Ne7 {[%emt 0:00:17]} 23. h5 {
[%emt 0:00:04]} f5 {[%emt 0:00:04]} 24. Qf3 {[%emt 0:00:06]} fxe4 {[%emt 0:00:
06]} 25. Nxe4 {[%emt 0:00:01]} Nf5 {[%emt 0:00:02]} 26. Kh3 {[%emt 0:00:08]} d5
{[%emt 0:00:04]} 27. Ng5 {[%emt 0:00:03]} Qd7 {[%emt 0:00:04]} 28. g4 {[%emt 0:
00:04]} Nh6 {[%emt 0:00:06]} 29. Rfe1 {[%emt 0:00:02]} Re8 {[%emt 0:00:05]} 30.
cxd5 {[%emt 0:00:01]} exd5 {[%emt 0:00:01]} 31. Rxd5 {[%emt 0:00:04]} Qc6 {
[%emt 0:00:10]} 32. Rde5 {[%emt 0:00:08]} Qxf3+ {[%emt 0:00:03]} 33. Nxf3 {
[%emt 0:00:01]} Red8 {[%emt 0:00:00]} 34. g5 {[%emt 0:00:06]} Nf7 {[%emt 0:00:
04]} 35. R5e3 {[%emt 0:00:02]} Nd6 {[%emt 0:00:05]} 36. Nd4 {[%emt 0:00:03]}
Nf7 {[%emt 0:00:13]} 37. Ne6 {[%emt 0:00:02]} Rd2 {[%emt 0:00:03]} 38. Bc3 {
[%emt 0:00:08]} Rxa2 {[%emt 0:00:03]} 39. Bd4 {[%emt 0:00:03]} Nd6 {[%emt 0:00:
13]} 40. Bxb6 {[%emt 0:00:03]} Nf5 {[%emt 0:00:01]} 41. Rd3 {[%emt 0:00:02]}
Rac2 {[%emt 0:00:04]} 42. Nxf8 {[%emt 0:00:02]} Kxf8 {[%emt 0:00:01]} 43. Ba5 {
[%emt 0:00:02]} Kg8 {[%emt 0:00:03]} 44. Red1 {[%emt 0:00:02]} Re2 {[%emt 0:00:
05]} 45. Rd8+ {[%emt 0:00:02]} Rxd8 {[%emt 0:00:01]} 46. Rxd8+ {[%emt 0:00:00]}
Kf7 {[%emt 0:00:00]} 47. Rd7+ {[%emt 0:00:02]} Ke6 {[%emt 0:00:01]} 48. Ra7 {
[%emt 0:00:03]} Re3+ {[%emt 0:00:02]} 49. Kg2 {[%emt 0:00:02]} Rxb3 {[%emt 0:
00:01]} 50. Rxa6+ {[%emt 0:00:01]} Kd5 {[%emt 0:00:01]} 51. Be1 {[%emt 0:00:05]
} Ke4 {[%emt 0:00:01]} 52. Ra4+ {[%emt 0:00:02]} Kd5 {[%emt 0:00:05]} 53. Ra5+
{[%emt 0:00:01]} Ke4 {[%emt 0:00:02]} 54. Ra4+ {[%emt 0:00:03]} Kd5 {[%emt 0:
00:01]} 55. Ra5+ {[%emt 0:00:03]} Ke4 {[%emt 0:00:02]} 56. Ra4+ {[%emt 0:00:01]
} 1/2-1/2

[Event "FIDE Women World Blitz 2021"]
[Site "Warsaw"]
[Date "2021.12.29"]
[Round "3.34"]
[White "Girya, Olga"]
[Black "Smietanska, Wiktoria"]
[Result "0-1"]
[ECO "E73"]
[WhiteElo "2402"]
[BlackElo "1765"]
[Annotator "NA"]
[PlyCount "71"]
[EventDate "2021.12.29"]
[EventType "swiss"]
[EventCountry "POL"]
[Tiebreak "Cut1 Buchholz"]
[SourceTitle "playchess.com"]
[Source "ChessBase"]
[SourceQuality "1"]
[TimeControl "180+2"]

1. d4 {[%emt 0:00:01]} Nf6 {[%emt 0:00:01]} 2. c4 {[%emt 0:00:00]} g6 {[%emt 0:
00:01]} 3. Nc3 {[%emt 0:00:01]} Bg7 {[%emt 0:00:00]} 4. e4 {[%emt 0:00:01]} d6
{[%emt 0:00:01]} 5. Be2 {[%emt 0:00:01]} O-O {[%emt 0:00:02]} 6. Be3 {[%emt 0:
00:01]} c5 {[%emt 0:00:16]} 7. d5 {[%emt 0:00:01]} e6 {[%emt 0:00:01]} 8. Nf3 {
[%emt 0:00:03]} exd5 {[%emt 0:00:02]} 9. cxd5 {[%emt 0:00:03]} Re8 {[%emt 0:00:
29]} 10. Nd2 {[%emt 0:00:03]} Nbd7 {[%emt 0:00:14]} 11. O-O {[%emt 0:00:03]} a6
{[%emt 0:00:07]} 12. a4 {[%emt 0:00:04]} Rb8 {[%emt 0:00:04]} 13. Qc2 {[%emt 0:
00:19]} Qe7 {[%emt 0:00:17]} 14. Rfe1 {[%emt 0:00:09]} Ne5 {[%emt 0:00:12]} 15.
h3 {[%emt 0:00:02]} Qc7 {[%emt 0:00:10]} 16. f4 {[%emt 0:00:09]} Ned7 {[%emt 0:
00:02]} 17. a5 {[%emt 0:00:27]} b5 {[%emt 0:00:36]} 18. axb6 {[%emt 0:00:01]}
Qxb6 {[%emt 0:00:02]} 19. Nc4 {[%emt 0:00:06]} Qc7 {[%emt 0:00:05]} 20. Bd3 {
[%emt 0:00:27]} Nb6 {[%emt 0:00:07]} 21. Na5 {[%emt 0:00:10]} Ra8 {[%emt 0:00:
27]} 22. Bf2 {[%emt 0:00:09]} Bd7 {[%emt 0:00:03]} 23. Nc4 {[%emt 0:00:18]}
Nxc4 {[%emt 0:00:05]} 24. Bxc4 {[%emt 0:00:01]} Qb7 {[%emt 0:00:02]} 25. e5 {
[%emt 0:00:06]} dxe5 {[%emt 0:00:02]} 26. fxe5 {[%emt 0:00:01]} Nh5 {[%emt 0:
00:02]} 27. e6 {[%emt 0:00:24]} fxe6 {[%emt 0:00:02]} 28. dxe6 {[%emt 0:00:01]}
Bc6 {[%emt 0:00:02]} 29. Bd5 {[%emt 0:00:04]} Bxd5 {[%emt 0:00:07]} 30. Nxd5 {
[%emt 0:00:02]} Qxd5 {[%emt 0:00:01]} 31. Rad1 {[%emt 0:00:01]} Qc6 {[%emt 0:
00:02]} 32. e7 {[%emt 0:00:11]} Bf6 {[%emt 0:00:06]} 33. Bxc5 {[%emt 0:00:15]}
Rac8 {[%emt 0:00:04]} 34. b4 {[%emt 0:00:02]} a5 {[%emt 0:00:05]} 35. Rd6 {
[%emt 0:00:07]} Qc7 {[%emt 0:00:05]} 36. Qb3+ {[%emt 0:00:20]} 0-1